bitfinex/quotes_SOLUSD_20250819
["timestamp","ask_amount","ask_price","bid_price","bid_amount"]
[1755645949797,41.44,178.39,178.33,0.06]
[1755645949798,14.79040871,178.36,178.33,0.06]
[1755645949998,14.07040871,178.34,178.33,0.06]
[1755645950530,14.79040871,178.34,178.33,0.06]
[1755645950735,41.4,178.35,178.33,0.06]
[1755645950929,41.4,178.35,178.33,14.13040871]
[1755645951135,41.4,178.35,178.33,0.06]
[1755645951333,26.0,178.39,178.33,14.13040871]
[1755645951513,41.44,178.38,178.33,14.80040871]
[1755645951747,14.07040871,178.37,178.33,0.06]
[1755645952041,0.72,178.37,178.33,0.06]
[1755645952954,14.79040871,178.36,178.33,0.06]
[1755645953247,0.72,178.36,178.33,0.06]
[1755645953411,14.07040871,178.35,178.33,0.06]
[1755645953613,41.44,178.34,178.33,0.06]
[1755645956050,56.23040871,178.34,178.33,0.06]
[1755645957309,14.07040871,178.34,178.33,0.06]
[1755645957535,41.42,178.34,178.33,0.06]
[1755645958308,42.14,178.34,178.33,0.06]
[1755645958718,56.21040871,178.34,178.33,0.06]
[1755645959040,41.42,178.34,178.33,0.06]
[1755645959405,42.14,178.34,178.33,0.06]
[1755645960444,26.0,178.31,178.29,0.06]
[1755645960617,55.47040871,178.3,178.29,0.06]
[1755645960817,56.19040871,178.3,178.29,0.06]
[1755645961027,14.07040871,178.3,178.29,0.06]
[1755645961231,55.49040871,178.3,178.29,0.06]
[1755645961433,42.14,178.3,178.29,0.06]
[1755645961759,55.49040871,178.3,178.29,0.06]
[1755645962047,14.07040871,178.3,178.29,0.06]
[1755645962223,42.12,178.3,178.29,0.06]
[1755645962420,56.19040871,178.3,178.29,0.06]
[1755645963235,157.72,178.33,178.29,0.06]
[1755645963439,41.42,178.32,178.29,0.06]
[1755645963641,14.07040871,178.31,178.29,0.06]
[1755645964373,51.04864428,178.32,178.29,0.06]
[1755645964723,41.42,178.32,178.29,0.74]
[1755645965522,41.4,178.31,178.29,0.74]
[1755645965957,41.4,178.31,178.29,0.06]
[1755645966130,41.4,178.31,178.29,0.74]
[1755645966643,41.4,178.31,178.29,0.06]
[1755645968832,131.0,178.33,178.3,9.62864428]
[1755645969056,41.36,178.32,178.29,10.36864428]
[1755645969233,0.72,178.31,178.29,0.06]
[1755645969562,41.38,178.3,178.29,0.06]
[1755645971783,41.38,178.3,178.26,9.18864428]
[1755645971957,41.38,178.3,178.26,9.86864428]
[1755645972265,41.38,178.3,178.25,13.59559401]
[1755645972266,41.38,178.3,178.27,9.62864428]
[1755645972437,41.38,178.3,178.27,10.30864428]
[1755645972763,41.38,178.3,178.28,9.62864428]
[1755645973270,41.38,178.3,178.27,10.30864428]
[1755645974467,41.38,178.3,178.26,9.62864428]
[1755645974674,0.72,178.29,178.25,13.59559401]
[1755645974844,42.0,178.28,178.24,26.0]
[1755645975041,0.72,178.27,178.23,13.59559401]
[1755645975248,41.3,178.26,178.23,13.59559401]
[1755645975568,41.3,178.26,178.23,13.65559401]
[1755645975768,41.3,178.26,178.23,0.06]
[1755645976937,41.3,178.26,178.23,26.06]
[1755645977136,42.02,178.26,178.23,26.06]
[1755645977339,0.72,178.25,178.24,26.0]
[1755645977566,10.34864428,178.25,178.23,0.06]
[1755645977875,182.60864428,178.24,178.17,0.2]
[1755645978084,9.62864428,178.2,178.17,0.2]
[1755645978385,41.26,178.19,178.17,0.2]
[1755645979096,9.62864428,178.17,178.12,9.68864428]
[1755645979248,50.90864428,178.16,178.12,0.06]
[1755645979452,41.28,178.15,178.12,0.06]
[1755645979985,41.28,178.15,178.13,9.62864428]
[1755645980163,41.28,178.15,178.12,10.36864428]
[1755645980361,0.72,178.14,178.12,0.06]
[1755645980563,50.88864428,178.13,178.12,0.06]
[1755645980891,51.60864428,178.13,178.12,0.06]
[1755645982172,41.98,178.13,178.12,0.06]
[1755645982559,51.60864428,178.13,178.12,0.06]
[1755645983065,41.98,178.13,178.12,0.06]
[1755645983379,51.60864428,178.13,178.12,0.06]
[1755645983574,50.88864428,178.13,178.12,0.06]
[1755645984574,41.26,178.13,178.12,0.06]
[1755645984884,41.22,178.13,178.12,0.06]
[1755645985578,41.2,178.13,178.12,0.06]
[1755645986174,41.2,178.14,178.12,0.74]
[1755645986358,41.2,178.14,178.12,10.36864428]
[1755645986556,41.2,178.14,178.12,0.06]
[1755645986557,9.62864428,178.13,178.12,0.06]
[1755645986867,10.34864428,178.13,178.12,0.06]
[1755645989890,143.60083328,178.13,178.12,0.06]
[1755645990391,131.72,178.13,178.12,0.06]
[1755645990582,182.58864428,178.13,178.12,0.06]
[1755645992261,41.24,178.13,178.12,0.06]
[1755645992968,50.86864428,178.13,178.12,0.06]
[1755645993579,9.62864428,178.13,178.12,0.06]
[1755645993771,41.2,178.13,178.12,0.06]
[1755645993977,9.62864428,178.18,178.12,10.36864428]
[1755645994185,41.24,178.17,178.15,9.62864428]
[1755645994377,41.24,178.16,178.13,10.30864428]
[1755645994573,41.24,178.16,178.13,0.68]
[1755645994773,50.86864428,178.16,178.12,0.06]
[1755645994980,41.24,178.16,178.13,0.69]
[1755645995300,41.24,178.16,178.12,0.06]
[1755645996212,41.24,178.16,178.12,10.37864428]
[1755645996576,10.28864428,178.15,178.12,0.06]
[1755645996787,9.62864428,178.13,178.12,0.06]
[1755645997122,41.9,178.14,178.12,0.06]
[1755645997413,41.24,178.14,178.12,0.06]
[1755645998210,41.24,178.14,178.13,9.62864428]
[1755645998573,41.24,178.14,178.12,0.06]
[1755645999806,9.62864428,178.13,178.12,0.06]
[1755645999983,10.28864428,178.13,178.12,0.06]
[1755646001693,9.62864428,178.13,178.12,0.06]
[1755646003188,10.28864428,178.13,178.12,0.06]
[1755646003594,19.97728828,178.13,178.12,0.06]
[1755646005779,20.11944985,178.13,178.12,0.06]
[1755646006280,26.0,178.11,178.1,0.06]
[1755646006489,76.91080585,178.11,178.1,0.06]
[1755646006816,77.57080585,178.11,178.1,0.06]
[1755646007390,79.82337585,178.11,178.1,0.06]
[1755646009619,52.98121428,178.11,178.1,0.75]
[1755646009920,50.72864428,178.11,178.1,0.06]
[1755646011388,52.98096028,178.11,178.1,0.06]
[1755646011693,53.78312185,178.11,178.1,0.06]
[1755646014010,11.88096028,178.11,178.1,0.06]
[1755646014211,52.96096028,178.11,178.1,0.06]
[1755646015715,53.62096028,178.11,178.1,0.06]
[1755646016308,52.96096028,178.11,178.1,0.06]
[1755646016803,53.62096028,178.11,178.1,0.06]
[1755646017323,52.96096028,178.11,178.1,0.06]
[1755646017694,53.76312185,178.11,178.1,0.06]
[1755646017914,53.10312185,178.11,178.1,0.06]
[1755646018589,52.96096028,178.11,178.1,0.06]
[1755646019812,53.62096028,178.11,178.1,0.06]
[1755646020731,52.96096028,178.11,178.1,0.06]
[1755646021023,50.70864428,178.11,178.1,0.06]
[1755646021327,0.03,178.12,178.1,10.37864428]
[1755646021494,0.03,178.12,178.1,9.68864428]
[1755646021702,0.03,178.12,178.11,0.69]
[1755646021902,41.05,178.12,178.11,10.31864428]
[1755646022097,41.05,178.12,178.11,0.69]
[1755646022524,0.03,178.12,178.11,10.31864428]
[1755646023020,0.03,178.12,178.11,23.91423829]
[1755646025303,0.03,178.12,178.11,24.05639986]
[1755646025811,0.03,178.12,178.11,23.91423829]
[1755646028203,0.03,178.12,178.11,10.31864428]
[1755646029025,40.97,178.12,178.11,0.69]
[1755646029210,40.97,178.12,178.1,0.06]
[1755646030131,9.62864428,178.11,178.1,0.06]
[1755646031401,9.65864428,178.12,178.1,0.06]
[1755646031598,40.94,178.11,178.1,0.06]
[1755646032733,40.94,178.11,178.1,0.78]
[1755646033233,40.94,178.11,178.1,0.06]
[1755646033733,50.56864428,178.11,178.1,0.06]
[1755646034107,51.28864428,178.11,178.1,0.06]
[1755646037424,55.14882404,178.11,178.1,0.06]
[1755646038639,55.14882404,178.11,178.08,0.06]
[1755646038640,26.14216157,178.09,178.08,0.06]
[1755646038820,80.40882404,178.09,178.08,0.06]
[1755646039022,81.12882404,178.09,178.08,0.06]
[1755646039636,81.12882404,178.09,178.06,0.06]
[1755646039637,90.75746832,178.09,178.06,0.06]
[1755646039836,9.77080585,178.07,178.06,0.06]
[1755646040040,54.40882404,178.07,178.06,0.06]
[1755646040225,55.12882404,178.07,178.06,0.06]
[1755646040430,45.50017976,178.07,178.06,0.06]
[1755646040617,55.12882404,178.07,178.06,0.06]
[1755646041108,51.41080585,178.07,178.06,0.06]
[1755646042245,61.03945085,178.07,178.06,0.06]
[1755646042634,60.31945085,178.07,178.06,0.06]
[1755646043011,50.54864428,178.07,178.06,0.06]
[1755646043222,60.17728828,178.07,178.06,0.06]
[1755646043512,60.19728828,178.07,178.06,0.06]
[1755646043910,50.56864428,178.07,178.06,0.06]
[1755646048535,51.43080585,178.07,178.06,0.06]
[1755646048846,61.05944985,178.07,178.06,0.06]
[1755646050347,57.64214193,178.07,178.06,0.06]
[1755646052440,61.09264724,178.07,178.06,0.06]
[1755646052638,64.80348667,178.07,178.06,0.06]
[1755646052838,64.80348667,178.07,177.98,0.72]
[1755646052839,26.0,178.04,177.98,0.72]
[1755646053141,9.66184167,177.99,177.96,0.72]
[1755646053344,50.60184167,177.98,177.96,0.72]
[1755646053561,0.72,178.03,177.96,0.72]
[1755646053562,50.60184167,177.97,177.96,0.72]
[1755646054383,40.94,177.97,177.96,0.72]
[1755646058258,13.595594,178.03,177.96,10.38184167]
[1755646058452,40.94,178.02,177.98,9.66184167]
[1755646058648,40.94,178.02,177.99,0.7]
[1755646058986,9.66184167,178.0,177.97,0.7]
[1755646059153,40.94,177.99,177.98,0.7]
[1755646060044,40.94,177.99,177.95,9.66184167]
[1755646060246,40.94,177.99,177.96,0.7]
[1755646060463,40.94,177.99,177.97,0.7]
[1755646060663,40.94,177.99,177.94,0.06]
[1755646060868,40.94,177.99,177.98,0.7]
[1755646062286,40.94,177.99,177.96,0.7]
[1755646062584,50.60184167,177.99,177.96,0.7]
[1755646062773,40.94,177.99,177.97,0.7]
[1755646063086,40.94,177.99,177.98,0.7]
[1755646064452,40.94,177.99,177.95,10.36184167]
[1755646064653,40.94,177.99,177.96,0.7]
[1755646064878,40.94,177.99,177.97,0.7]
[1755646065449,40.94,177.99,177.98,0.7]
[1755646065881,4.68343675,178.12,177.98,0.7]
[1755646065882,9.66184167,178.08,177.98,10.36184167]
[1755646066079,40.94,178.07,178.03,9.66184167]
[1755646066288,50.60184167,178.06,178.01,10.36184167]
[1755646066585,40.94,178.06,178.02,10.36184167]
[1755646066962,40.94,178.06,178.02,0.7]
[1755646067162,40.94,178.06,178.02,10.36184167]
[1755646067372,40.94,178.06,178.03,0.7]
[1755646068283,9.66184167,178.04,178.0,0.7]
[1755646068458,40.94,178.03,178.0,0.7]
[1755646068654,40.94,178.03,177.96,9.72184167]
[1755646068655,9.66184167,178.01,177.96,9.72184167]
[1755646068870,50.60184167,178.0,177.97,0.7]
[1755646069758,9.66184167,177.99,177.96,0.06]
[1755646070081,40.94,177.98,177.97,0.7]
[1755646071275,40.94,177.98,177.97,10.36184167]
[1755646072485,9.69184167,178.08,177.97,10.36184167]
[1755646072664,41.6,178.07,178.03,9.66184167]
[1755646072867,0.66,178.06,178.02,9.66184167]
[1755646073190,0.66,178.05,178.01,9.66184167]
[1755646073386,41.6,178.04,178.0,9.66184167]
[1755646073977,0.66,178.03,178.0,9.66184167]
[1755646074285,0.66,178.03,178.0,6.20947638]
[1755646074488,40.94,178.04,177.97,0.7]
[1755646074489,0.66,178.02,177.97,0.7]
[1755646074693,40.94,178.01,177.98,6.20947638]
[1755646075188,40.94,178.01,177.99,6.20947638]
[1755646076789,40.94,178.01,177.98,6.20947638]
[1755646076969,41.6,178.01,177.97,6.20947638]
[1755646077369,0.66,178.0,177.96,6.26947638]
[1755646078286,47.14947638,178.01,177.96,6.26947638]
[1755646078492,0.66,177.99,177.96,6.26947638]
[1755646078685,40.92,177.98,177.96,6.26947638]
[1755646079499,40.92,177.98,177.96,6.96947638]
[1755646079672,40.92,177.98,177.97,6.90947638]
[1755646082777,0.66,178.07,177.98,13.59559401]
[1755646082978,4.38929008,178.07,178.04,6.20947638]
[1755646083174,40.92,178.06,178.04,6.20947638]
[1755646083591,0.03,178.08,178.05,6.90947638]
[1755646083780,0.03,178.08,178.07,6.20947638]
[1755646084311,0.03,178.08,178.07,20.50507039]
[1755646085288,0.03,178.08,178.07,6.90947638]
[1755646086402,0.03,178.08,178.07,10.34632611]
[1755646086793,0.03,178.08,178.07,9.64632611]
[1755646087504,0.75,178.08,178.06,9.64632611]
[1755646087804,0.75,178.08,178.05,9.64632611]
[1755646087992,0.72,178.07,178.05,9.64632611]
[1755646088194,40.92,178.06,178.05,9.64632611]
[1755646088768,40.92,178.06,178.05,10.34632611]
[1755646090500,0.03,178.08,178.05,10.34632611]
[1755646090670,0.03,178.08,178.07,9.64632611]
[1755646090876,0.03,178.08,178.07,10.34632611]
[1755646092076,0.03,178.08,178.07,9.64632611]
[1755646092278,0.03,178.08,178.04,0.76]
[1755646092279,10.39632611,178.08,178.04,0.06]
[1755646092475,9.64632611,178.05,178.04,0.06]
[1755646092806,41.46,178.05,178.04,0.06]
[1755646093001,51.82632611,178.05,178.04,0.06]
[1755646093705,51.10632611,178.05,178.04,0.06]
[1755646094074,51.82632611,178.05,178.04,0.06]
[1755646094283,51.10632611,178.05,178.04,0.06]
[1755646094492,41.46,178.05,178.04,0.06]
[1755646094796,51.10632611,178.05,178.04,0.06]
[1755646095304,41.46,178.05,178.04,0.06]
[1755646095603,0.75,178.08,178.04,0.06]
[1755646095811,41.44,178.05,178.04,0.06]
[1755646096110,41.44,178.05,178.04,0.76]
[1755646096277,41.44,178.05,178.04,0.06]
[1755646097894,42.16,178.05,178.04,0.06]
[1755646098308,41.44,178.05,178.04,0.06]
[1755646099015,41.44,178.05,178.04,10.40632611]
[1755646099381,41.44,178.05,178.04,0.06]
[1755646103695,41.44,178.05,178.04,10.40632611]
[1755646103892,0.03,178.06,178.04,10.40632611]
[1755646104082,41.33,178.06,178.05,10.34632611]
[1755646105588,0.03,178.06,178.05,23.94192012]
[1755646109021,0.03,178.06,178.05,0.7]
[1755646109179,0.03,178.06,178.04,9.70632611]
[1755646109815,41.92,178.05,178.04,0.06]
[1755646110002,51.56632611,178.05,178.04,0.06]
[1755646111011,41.92,178.05,178.04,0.06]
[1755646112798,51.56632611,178.05,178.04,0.06]
[1755646113003,41.92,178.05,178.04,0.06]
[1755646113322,41.2,178.05,178.04,0.06]
[1755646113489,0.03,178.06,178.04,0.06]
[1755646113700,41.2,178.05,178.04,0.76]
[1755646114011,41.2,178.05,178.04,9.70632611]
[1755646115918,41.2,178.05,178.04,10.38632611]
[1755646116612,0.03,178.06,178.04,23.98192012]
[1755646116817,0.03,178.06,178.05,10.32632611]
[1755646117426,0.03,178.06,178.04,0.06]
[1755646117593,0.73,178.06,178.04,0.06]
[1755646117994,41.14,178.05,178.04,0.06]
[1755646118498,41.84,178.05,178.04,0.06]
[1755646118699,0.03,178.06,178.04,10.38632611]
[1755646118894,0.03,178.06,178.05,10.32632611]
[1755646120303,0.03,178.06,178.05,9.64632611]
[1755646120503,0.03,178.06,178.05,10.32632611]
[1755646120721,0.03,178.06,178.05,23.92192012]
[1755646121306,0.03,178.06,178.05,9.64632611]
[1755646121812,0.03,178.06,178.05,10.32632611]
[1755646122141,0.03,178.06,178.05,9.64632611]
[1755646123706,0.03,178.06,178.05,10.32632611]
[1755646125714,0.03,178.06,178.05,23.24192012]
[1755646125917,0.03,178.06,178.05,23.92192012]
[1755646126730,0.03,178.06,178.05,13.59559401]
[1755646126946,0.03,178.06,178.05,23.92192012]
[1755646127724,0.03,178.06,178.05,14.27559401]
[1755646128048,0.03,178.06,178.05,23.92192012]
[1755646128413,0.03,178.06,178.05,24.06408169]
[1755646128661,0.03,178.06,178.05,14.41775558]
[1755646128816,0.03,178.06,178.05,23.92192012]
[1755646130217,0.03,178.06,178.05,23.24192012]
[1755646131537,0.03,178.06,178.05,24.06408169]
[1755646132607,0.03,178.06,178.05,23.92192012]
[1755646132838,0.03,178.06,178.05,24.06408169]
[1755646137955,0.03,178.06,178.05,23.92192012]
[1755646138321,0.03,178.06,178.05,23.24192012]
[1755646140043,0.73,178.06,178.04,9.70632611]
[1755646140226,0.73,178.06,178.05,9.64632611]
[1755646140826,0.73,178.06,178.04,9.70632611]
[1755646141347,0.03,178.06,178.04,9.70632611]
[1755646141548,0.73,178.06,178.04,9.70632611]
[1755646142123,0.03,178.06,178.04,9.70632611]
[1755646142760,0.03,178.06,178.05,23.92192012]
[1755646145345,0.03,178.06,178.04,0.06]
[1755646145346,10.35632611,178.06,178.04,0.06]
[1755646145649,10.32632611,178.05,178.04,0.06]
[1755646146428,6.89034255,178.05,178.04,0.06]
[1755646148133,0.68,178.05,178.04,0.06]
[1755646148336,10.34215339,178.05,178.04,0.06]
[1755646149637,10.34215339,178.05,178.02,0.06]
[1755646149638,14.0668992,178.05,178.02,0.06]
[1755646149943,9.66215339,178.03,178.01,0.06]
[1755646150136,0.68,178.04,178.01,0.06]
[1755646150335,9.66215339,178.02,178.01,0.06]
[1755646150542,10.34215339,178.02,178.01,0.06]
[1755646152057,10.48431496,178.02,178.01,0.06]
[1755646152638,10.34215339,178.02,178.01,0.06]
[1755646153755,68.36,178.02,178.01,0.06]
[1755646153957,78.02215339,178.02,178.01,0.06]
[1755646154264,0.14216157,178.01,177.99,0.06]
[1755646154565,26.0,177.98,177.86,0.72]
[1755646154766,9.66215339,177.9,177.86,0.72]
[1755646154933,41.74,177.89,177.86,26.72]
[1755646155267,41.74,177.89,177.83,14.31559401]
[1755646155566,9.66215339,177.88,177.83,0.72]
[1755646155757,9.66215339,177.88,177.83,26.72]
[1755646155952,41.74,177.89,177.84,10.38215339]
[1755646156259,41.74,177.89,177.85,10.38215339]
[1755646156443,41.74,177.89,177.87,9.66215339]
[1755646156646,41.74,177.89,177.88,0.72]
[1755646157164,41.74,177.89,177.86,0.72]
[1755646157370,41.74,177.89,177.87,9.66215339]
[1755646157665,41.76,177.9,177.87,0.72]
[1755646157957,41.76,177.9,177.88,0.72]
[1755646158668,41.76,177.9,177.89,0.72]
[1755646159559,41.76,177.9,177.89,23.9777474]
[1755646159952,41.76,177.9,177.88,39.59559401]
[1755646160136,41.76,177.9,177.88,49.2577474]
[1755646160334,41.76,177.9,177.89,10.38215339]
[1755646160535,41.8,177.97,177.92,26.0]
[1755646160742,41.82,177.98,177.95,9.66215339]
[1755646160941,41.82,177.98,177.94,9.66215339]
[1755646161269,41.82,177.98,177.95,0.72]
[1755646161470,16.89998,178.03,177.98,26.0]
[1755646161670,16.89998,178.03,177.92,0.14216157]
[1755646161671,41.87,178.03,177.99,0.72]
[1755646161841,41.87,178.03,177.96,26.0]
[1755646161842,0.68,178.02,177.96,9.66215339]
[1755646162049,0.68,178.02,177.96,23.2577474]
[1755646162268,0.68,178.02,177.95,0.72]
[1755646162566,10.34215339,178.02,177.96,23.2577474]
[1755646162774,0.68,178.02,177.98,9.66215339]
[1755646163579,41.87,178.03,177.98,9.66215339]
[1755646163744,0.03,178.03,178.02,9.66215339]
[1755646163937,0.03,178.03,178.02,10.38215339]
[1755646165357,0.03,178.03,178.02,23.9777474]
[1755646165558,0.03,178.03,178.02,14.31559401]
[1755646165756,0.03,178.03,178.02,23.9777474]
[1755646167150,0.03,178.06,178.05,26.0]
[1755646167350,0.03,178.08,178.07,0.14216157]
[1755646167549,0.03,178.14,178.08,13.59559401]
[1755646167782,0.03,178.14,178.09,10.38215339]
[1755646168177,0.03,178.14,178.09,23.9777474]
[1755646168473,0.03,178.14,178.09,23.2577474]
[1755646168645,0.03,178.14,178.09,9.66215339]
[1755646168847,0.71,178.14,178.09,9.66215339]
[1755646170559,0.03,178.05,178.04,13.59559401]
[1755646170747,0.03,178.05,178.04,23.2577474]
[1755646171175,0.03,178.05,178.04,9.66215339]
[1755646171847,0.03,178.05,178.04,10.38215339]
[1755646174081,0.03,178.05,178.04,9.66215339]
[1755646175189,0.03,178.05,178.02,14.31559401]
[1755646175190,0.03,178.05,178.02,13.59559401]
[1755646175371,0.68,178.05,178.02,9.66215339]
[1755646175557,0.68,178.05,178.03,9.66215339]
[1755646175883,0.68,178.05,177.98,13.59559401]
[1755646175884,0.65,178.04,178.02,9.66215339]
[1755646176071,0.65,178.03,178.01,9.66215339]
[1755646176284,0.03,178.05,178.02,9.66215339]
[1755646176462,41.72,178.04,178.03,9.66215339]
[1755646178074,0.03,178.05,178.03,9.66215339]
[1755646178385,0.03,178.05,178.01,0.67]
[1755646178386,41.72,178.04,178.01,0.67]
[1755646178960,0.03,178.05,178.02,0.67]
[1755646179170,0.03,178.05,178.03,0.67]
[1755646179697,0.68,178.05,178.0,0.06]
[1755646179864,0.03,178.05,178.01,9.66215339]
[1755646180065,0.65,178.04,178.02,9.66215339]
[1755646180592,0.03,178.05,178.03,9.66215339]
[1755646180800,0.65,178.04,178.02,9.66215339]
[1755646180980,0.03,178.05,178.03,9.66215339]
[1755646181299,41.95,178.05,178.04,9.66215339]
[1755646181692,41.95,178.05,178.03,9.66215339]
[1755646183169,41.95,178.05,178.04,9.66215339]
[1755646183384,41.93,178.05,178.04,9.66215339]
[1755646183881,0.03,178.05,178.04,23.9277474]
[1755646184200,0.03,178.05,178.04,9.66215339]
[1755646187081,0.03,178.05,178.04,10.33215339]
[1755646187481,0.03,178.05,178.04,9.66215339]
[1755646187678,0.03,178.05,178.02,26.06]
[1755646187883,0.68,178.05,178.03,9.66215339]
[1755646188303,0.03,178.05,178.02,0.06]
[1755646188481,0.65,178.04,178.02,0.06]
[1755646188687,42.45,178.03,178.02,0.06]
[1755646189193,41.8,178.03,178.02,9.72215339]
[1755646192292,0.03,178.05,178.02,9.72215339]
[1755646192513,41.8,178.04,178.03,9.66215339]
[1755646192709,41.8,178.04,178.02,0.06]
[1755646193007,41.8,178.04,178.02,9.72215339]
[1755646193202,0.62,178.03,178.02,0.06]
[1755646193402,10.28215339,178.03,178.02,0.06]
[1755646195416,0.62,178.03,178.02,0.06]
[1755646195807,41.8,178.04,178.02,0.06]
[1755646196215,42.42,178.04,178.02,0.06]
[1755646196412,0.62,178.03,178.02,0.06]
[1755646198113,41.8,178.04,178.02,0.06]
[1755646198293,0.65,178.03,178.02,0.06]
[1755646198493,0.03,178.05,178.02,0.06]
[1755646198694,41.78,178.04,178.03,9.66215339]
[1755646198922,41.78,178.04,178.02,9.72215339]
[1755646199222,41.78,178.04,178.03,9.66215339]
[1755646200442,41.78,178.04,178.02,9.72215339]
[1755646200731,0.03,178.05,178.03,10.33215339]
[1755646201021,0.03,178.1,178.05,13.59559401]
[1755646201237,0.03,178.1,178.07,9.66215339]
[1755646201413,0.68,178.1,178.07,9.66215339]
[1755646202110,0.68,178.1,178.04,26.67]
[1755646202309,0.68,178.1,178.06,9.66215339]
[1755646202629,0.03,178.08,178.07,9.66215339]
[1755646203928,0.03,178.08,178.05,9.66215339]
[1755646204128,42.41,178.07,178.02,0.06]
[1755646204309,0.66,178.06,178.02,0.06]
[1755646204618,51.42215339,178.07,178.05,9.66215339]
[1755646204619,41.76,178.07,178.05,9.66215339]
[1755646204813,41.76,178.07,178.06,9.66215339]
[1755646205010,41.76,178.07,178.06,10.37215339]
[1755646205424,41.76,178.07,178.06,9.66215339]
[1755646206230,41.76,178.07,178.04,0.71]
[1755646207051,42.42,178.07,178.04,9.66215339]
[1755646207820,42.42,178.07,178.05,9.66215339]
[1755646207821,41.76,178.07,178.05,9.66215339]
[1755646209232,41.76,178.07,178.06,10.37215339]
[1755646209604,41.76,178.07,178.04,26.71]
[1755646209825,41.76,178.07,178.06,9.66215339]
[1755646210441,41.76,178.07,178.06,0.71]
[1755646210632,52.08215339,178.07,178.02,0.06]
[1755646210937,42.42,178.07,178.02,0.77]
[1755646211120,41.76,178.07,178.04,9.66215339]
[1755646211509,42.42,178.07,178.03,9.66215339]
[1755646211926,41.76,178.07,178.03,9.66215339]
[1755646212126,41.76,178.07,178.02,0.06]
[1755646212127,9.66215339,178.05,178.02,0.06]
[1755646212324,10.32215339,178.06,178.02,0.06]
[1755646212527,0.66,178.05,178.02,0.06]
[1755646212726,9.66215339,178.06,178.02,0.06]
[1755646213037,0.66,178.04,178.02,0.06]
[1755646213231,41.82,178.03,178.02,0.06]
[1755646214745,41.82,178.03,178.02,9.72215339]
[1755646215045,0.03,178.08,178.02,10.43215339]
[1755646215213,41.87,178.08,178.07,9.66215339]
[1755646215416,41.87,178.08,178.07,10.37215339]
[1755646215615,0.03,178.08,178.07,10.37215339]
[1755646217936,0.03,178.08,178.07,9.66215339]
[1755646218437,0.03,178.08,178.07,10.37215339]
[1755646219843,0.03,178.08,178.07,49.9677474]
[1755646220047,0.03,178.1,178.09,39.73775558]
[1755646220345,0.03,178.1,178.09,49.2577474]
[1755646220549,0.03,178.1,178.09,49.9677474]
[1755646220752,0.03,178.1,178.09,36.37215339]
[1755646223948,0.03,178.1,178.09,49.9677474]
[1755646224555,0.03,178.1,178.09,50.10990897]
[1755646225135,0.03,178.12,178.1,13.73775558]
[1755646225327,0.03,178.12,178.11,9.80431496]
[1755646225517,0.03,178.14,178.13,39.59559401]
[1755646225722,0.03,178.14,178.13,49.39990897]
[1755646226027,0.03,178.14,178.13,55.75300035]